Cogmind - Beta 13 X2 *** ADVENTURER MODE // 2024.01.28 @ 23:47:05 Player: Sardaukar Result: Destroyed by G-47 Trooper with Particle Gun Performance ------------- Evolutions (1) 500 Regions Visited (3) 600 Robots Destroyed (33) 165 Value Destroyed (764) 764 Prototype IDs (0) 0 Alien Tech Used (0) 0 Bonus (0) 0 TOTAL SCORE: 2029 Bonus ------- None Cogmind --------- Core Integrity 0/400 Matter 180/300 Energy 100/100 System Corruption 0% Temperature Warning (364) Movement Core (500) Ox9 Location -9/Materials Parts ------- > --- POWER (1) -------- (None) > --- PROPULSION (3) --- (None) > --- UTILITY (2) ------ Large Storage Unit Field Recycling Unit > --- WEAPON (3) ------- (None) > --- INVENTORY (15) --- Signal Interpreter Beam Cannon Peak State ------------ > --- POWER ------------ Ion Engine > --- PROPULSION ------- Aluminum Leg Compact Wheel Compact Wheel > --- UTILITY ---------- Large Matter Pod Light Armor Plating > --- WEAPON ----------- Beam Cannon Light Assault Rifle Heavy Assault Rifle > --- INVENTORY -------- Ion Engine Signal Interpreter Medium Laser Light Assault Rifle Light Assault Rifle [Rating: 10] Favorites ----------- Power Ion Engine Engine Ion Engine Propulsion Light Treads Treads Light Treads Leg Aluminum Leg Wheel Compact Wheel Utility Large Matter Pod Device Heat Sink Storage Large Matter Pod Protection Light Armor Plating Weapon Light Assault Rifle Energy Gun Medium Laser Energy Cannon Beam Cannon Ballistic Gun Light Assault Rifle Launcher Grenade Launcher Build | -11 -10 -10 -9 ------- Run | Yrd Mat Min Mat Slots Evolved 2 | . . . 2 Power . | . . . . Propulsion 1 | . . . 1 Utility . | . . . . Weapon 1 | . . . 1 Parts Attached 21 | 5 4 . 12 Power 2 | 1 . . 1 Engine 2 | 1 . . 1 Core . | . . . . Reactor . | . . . . Propulsion 5 | 2 . . 3 Treads 2 | 2 . . . Leg 1 | . . . 1 Wheel 2 | . . . 2 Hover . | . . . . Flight . | . . . . Utility 5 | . 2 . 3 Device 2 | . 1 . 1 Storage 2 | . 1 . 1 Processor . | . . . . Hackware . | . . . . Protection 1 | . . . 1 Artifact . | . . . . Weapon 9 | 2 2 . 5 Energy Gun 1 | . . . 1 Energy Cannon 1 | . 1 . . Ballistic Gun 6 | 2 . . 4 Ballistic Cannon . | . . . . Launcher 1 | . 1 . . Special Weapon . | . . . . Impact Weapon . | . . . . Slashing Weapon . | . . . . Piercing Weapon . | . . . . Special Melee Weapon . | . . . . Unidentified Prototypes . | . . . . Parts Lost 13 | . . . 13 Power 2 | . . . 2 Propulsion 4 | . . . 4 Utility 2 | . . . 2 Weapon 5 | . . . 5 Highest Loss Streak 11 | . . . 11 To Critical Strikes . | . . . . Average Slot Usage (%) 85 | . 87 85 82 Engine 12 | . 14 14 10 Treads 13 | . 21 14 2 Leg 2 | . . . 6 Wheel 4 | . . . 12 Device 9 | . 11 14 3 Storage 12 | . 13 14 11 Protection 1 | . . . 4 Energy Cannon 8 | . 3 14 9 Ballistic Gun 18 | . 20 14 20 Naked Turns . | . . . . Heaviest Build 35 | 7 13 13 35 Greatest Support 40 | 40 40 20 20 Greatest Overweight (x) 9 | . . . 9 Average Overweight (x) . | . . . . Largest Inventory Capacity 15 | 5 5 5 15 Average Capacity 5 | 5 5 5 7 Most Carried 5 | . 4 4 5 Average Carried 3 | . 2 3 3 Final Capacity 15 | 5 5 5 15 Final Carried 4 | . 3 4 2 Class Distribution -------------------- 71% | Mutant 13% | Scavenger-Tank 10% | Gunner 3% | Scavenger-Mutant Dominant Class ---------------- Mutant | -10/Materials Mutant | -10/Mines Scavenger-Tank | -9/Materials Resources | -11 -10 -10 -9 ----------- Run | Yrd Mat Min Mat Matter Collected 629 | 160 231 134 104 Remotely . | . . . . Salvage Created 1080 | . 285 108 687 Parts 65 | . 17 11 37 Haulers Intercepted 1 | . 1 . . Recyclers Shooed 1 | . . . 1 Parts Field Recycled . | . . . . Retrieved Matter . | . . . . Parts Self-Destructed . | . . . . Prevented . | . . . . Kills | -11 -10 -10 -9 ------- Run | Yrd Mat Min Mat Combat Hostiles Destroyed 26 | . 6 7 13 Guns 10 | . 1 1 8 Cannons 12 | . 1 6 5 AOE 3 | . 3 . . Classes Destroyed 11 | . 6 2 3 Worker 1 | . 1 . . Builder 1 | . . 1 . Hauler 1 | . 1 . . Recycler 3 | . 1 . 2 Mechanic 1 | . 1 . . Watcher 1 | . . . 1 Swarmer 9 | . 3 6 . Grunt 14 | . 3 . 11 Brawler 1 | . . . 1 Sentry 1 | . . . 1 Assembled 1 | . . 1 . Best Kill Streak 7 | . 4 4 7 Combat Bots Only 4 | . 3 3 4 Max Kills in Single Turn 3 | . 3 1 1 Gunslinging . | . . . . Exploded 2 | . 2 . . Melee . | . . . . Uniques/NPCs Destroyed . | . . . . Combat | -11 -10 -10 -9 -------- Run | Yrd Mat Min Mat Hostile Shots Fired 182 | . 13 32 137 Missed 36 | . 4 8 24 Damage Taken 1571 | . 92 281 1198 Core 487 | . 32 53 402 Absorbed by Shields . | . . . . Ignored by Resistances 456 | . 30 81 345 Core Remaining (%) 83 | 100 . 66 . Volleys Fired 75 | . 20 15 40 Largest 3 | . 2 2 3 Hottest 103 | . 80 80 103 Shots Fired 169 | . 33 30 106 Gun 114 | . 18 15 81 Cannon 49 | . 9 15 25 Launcher 6 | . 6 . . Special . | . . . . Kinetic 106 | . 18 15 73 Thermal 57 | . 9 15 33 Explosive 6 | . 6 . . Electromagnetic . | . . . . Robot Hit Streak 25 | . 17 7 25 Robot Miss Streak 3 | . 2 2 3 Penetration Max . | . . . . Secondary Targets . | . . . . Shots Hit Robots 115 | . 24 17 74 Core Hits 56 | . 14 11 31 Critical Kills 1 | . 1 . . Critical Parts Destroyed 1 | . . . 1 Critical Strikes 2 | . 1 . 1 Meltdown 1 | . 1 . . Destroy 1 | . . . 1 Melee Attacks . | . . . . Impact . | . . . . Slashing . | . . . . Piercing . | . . . . Sneak Attacks . | . . . . Combat Hostiles . | . . . . Follow-up Attacks . | . . . . Damage Inflicted 1914 | . 641 268 1005 Guns 787 | . 96 59 632 Cannons 707 | . 125 209 373 Explosions 420 | . 420 . . Melee . | . . . . Ramming . | . . . . Kinetic 714 | . 96 59 559 Thermal 780 | . 125 209 446 Explosive 420 | . 420 . . Electromagnetic . | . . . . Impact . | . . . . Slashing . | . . . . Piercing . | . . . . Highest Corruption . | . . . . Average Corruption . | . . . . Corruption Purged . | . . . . Corruption Blocked . | . . . . Overload Shots . | . . . . Overflow Damage 7 | . 7 . . Projectiles . | . . . . Explosions 7 | . 7 . . Melee . | . . . . Knockbacks . | . . . . Impact . | . . . . Kinetic . | . . . . Secondary . | . . . . Self-Inflicted Damage . | . . . . Shots . | . . . . Rammed . | . . . . Targets Rammed . | . . . . Kicked . | . . . . Crushed . | . . . . Highest Temperature 594 | . 29 40 594 Average Temperature 180 | . 16 18 233 Received Heat Transfer 801 | . 33 . 768 Effects 16 | . . . 16 Shutdowns 2 | . . . 2 Energy Bleed 2 | . . . 2 Matter Decay 1 | . . . 1 Short Circuit 4 | . . . 4 Damage (minor) 1 | . . . 1 Damage (major) 5 | . . . 5 Damage (core) 1 | . . . 1 Siege Activations . | . . . . Robots Corrupted . | . . . . Combat Hostiles . | . . . . Parts Fried . | . . . . Impact Corruptions . | . . . . Robots Melted 1 | . 1 . . Combat Hostiles 1 | . 1 . . Parts Melted 2 | . 2 . . Heat Transferred 1702 | . 259 444 999 Parts Sabotaged . | . . . . Parts Stolen . | . . . . Parts Stripped . | . . . . Power Chain Reactions . | . . . . Missiles Intercepted . | . . . . Alert | -11 -10 -10 -9 ------- Run | Yrd Mat Min Mat Peak Influence 380 | . 199 225 380 Initial 73 | . . 65 73 Average 154 | . 86 203 212 Maximum Alert Level 1 | . . 1 1 Low Security (%) 64 | 100 100 28 52 Level 1 35 | . . 71 47 Level 2 . | . . . . Level 3 . | . . . . Level 4 . | . . . . Level 5 . | . . . . High Security . | . . . . Max Security . | . . . . Squads Dispatched 2 | . 1 . 1 Investigation 1 | . 1 . . Extermination . | . . . . Reinforcement 1 | . . . 1 Assault . | . . . . Garrison . | . . . . Intercept . | . . . . Searches Triggered . | . . . . Construction Impeded . | . . . . Haulers Reinforced . | . . . . Active Scanning Responses . | . . . . Cargo Convoy Interrupts . | . . . . Stealth | -11 -10 -10 -9 --------- Run | Yrd Mat Min Mat Distress Signals 2 | . . . 2 Communications Jammed . | . . . . Distress Signals . | . . . . Times Spotted 49 | . 11 17 21 Peak Tracking Total 17 | . 3 17 6 Tactical Retreats 1 | . . . 1 Traps | -11 -10 -10 -9 ------- Run | Yrd Mat Min Mat Traps Triggered 2 | . 2 . . Indirectly . | . . . . Trap Hack Attempts . | . . . . Triggered . | . . . . Disarmed . | . . . . Reprogrammed . | . . . . Reused . | . . . . Traps Extracted . | . . . . Installed . | . . . . Triggered . | . . . . Machines | -11 -10 -10 -9 ---------- Run | Yrd Mat Min Mat Machines Disabled 1 | . 1 . . Max in Single Turn 1 | . 1 . . Machines Repaired . | . . . . Machines Dismantled . | . . . . Machines Sabotaged . | . . . . Overloaded Fab Kills . | . . . . Hacking | -11 -10 -10 -9 --------- Run | Yrd Mat Min Mat Machines Accessed 3 | . 2 . 1 Terminals 3 | . 2 . 1 Fabricators . | . . . . Repair Stations . | . . . . Recycling Units . | . . . . Scanalyzers . | . . . . Garrison Access . | . . . . Total Hacks 12 | . 9 . 3 Successful 7 | . 6 . 1 Failed 5 | . 3 . 2 Catastrophic . | . . . . Database Lockouts . | . . . . Manual 3 | . . . 3 Terminals 12 | . 9 . 3 Fabricators . | . . . . Repair Stations . | . . . . Recycling Units . | . . . . Scanalyzers . | . . . . Garrison Access . | . . . . Terminal Hacks 7 | . 6 . 1 Record 2 | . 2 . . Robot Analysis 1 | . 1 . . Terminal Index 2 | . 1 . 1 Alert Level 1 | . 1 . . Zone Layout 1 | . 1 . . Fabricator Hacks . | . . . . Repair Station Hacks . | . . . . Recycling Unit Hacks . | . . . . Scanalyzer . | . . . . Garrison Access Hacks . | . . . . Unauthorized Hacks . | . . . . Terminals . | . . . . Fabricators . | . . . . Repair Stations . | . . . . Recycling Units . | . . . . Scanalyzers . | . . . . Garrison Access . | . . . . Data Cores Recovered . | . . . . Used . | . . . . Hacking Detections 3 | . 2 . 1 Full Trace Events 2 | . 2 . . Feedback Events . | . . . . Feedback Blocked . | . . . . Robot Schematics Acquired . | . . . . Robots Built . | . . . . Authchips . | . . . . Time . | . . . . Total Robot Build Rating . | . . . . Part Schematics Acquired . | . . . . Parts Built . | . . . . Authchips . | . . . . Time . | . . . . Total Part Build Rating . | . . . . Parts Repaired . | . . . . Time . | . . . . Parts Recycled . | . . . . Recycled Matter . | . . . . Retrieved Matter . | . . . . Retrieved Components . | . . . . Parts Scanalyzed . | . . . . Part Schematics Acquired . | . . . . Parts Damaged . | . . . . Bothacking | -11 -10 -10 -9 ------------ Run | Yrd Mat Min Mat Used RIF Installer . | . . . . Robots Hacked . | . . . . Non-combat . | . . . . Combat . | . . . . Robot Hacks Applied . | . . . . Relay Couplers Released . | . . . . Fabnet Peak Effective % . | . . . . Robots Rewired . | . . . . Allies Hacked . | . . . . Hacks Repelled . | . . . . Allies | -11 -10 -10 -9 -------- Run | Yrd Mat Min Mat Total Allies . | . . . . Largest Group . | . . . . Highest-Rated Group . | . . . . Highest-Rated Ally . | . . . . Total Orders . | . . . . Ally Attacks . | . . . . Total Damage . | . . . . Kills . | . . . . Allies Corrupted . | . . . . Allies Melted . | . . . . Intel | -11 -10 -10 -9 ------- Run | Yrd Mat Min Mat Robot Analysis Total 1 | . 1 . . Derelict Logs Recovered . | . . . . Drone Launches . | . . . . Drone Recoveries . | . . . . Exploration | -11 -10 -10 -9 ------------- Run | Yrd Mat Min Mat Turns Passed 1082 | 62 372 314 334 Spaces Moved 515 | 49 195 170 101 Core 27 | 21 . . 6 Treads 434 | 28 195 170 41 Legs 54 | . . . 54 Wheels . | . . . . Hover . | . . . . Flight . | . . . . Fastest Speed 50 | 50 160 160 160 Average Speed 161 | 112 160 160 190 Slowest Speed 500 | 160 160 160 500 Overloaded Moves . | . . . . Propulsion Burnouts . | . . . . Robots Hopped . | . . . . Cave-ins Triggered . | . . . . Exploration Rate (%) 22 | 5 38 35 11 Regions Visited 3 Branch Regions 1 Pre-discovered Areas . | . . . . Known Exits Taken . | . . . . Unknown Exits Taken 3 | 1 1 1 . Scrap Searched 1 | . . 1 . Spaces Dug . | . . . . Terrain Destroyed 20 | . 20 . . Melee . | . . . . Projectile . | . . . . AOE 20 | . 20 . . Terrain Rammed . | . . . . Walls Destroyed . | . . . . Machines Disabled . | . . . . Actions | -11 -10 -10 -9 --------- Run | Yrd Mat Min Mat Total 627 | 53 224 185 165 Wait 12 | . 2 . 10 Move 512 | 48 194 169 101 Hop . | . . . . Pick Up 6 | . 4 1 1 Fast Attach 13 | 5 2 . 6 Attach 5 | . 1 . 4 Detach . | . . . . Swap 3 | . 1 . 2 Drop 1 | . . . 1 Fire 75 | . 20 15 40 Melee . | . . . . Ram . | . . . . Kick . | . . . . Crush . | . . . . Escape Stasis . | . . . . Rewire . | . . . . Trap . | . . . . Miscellaneous . | . . . . Route ------- -11/Scrapyard -10/Materials (discovered 2 exits: *Mat / [*Min]) -10/Mines (discovered 2 exits: *Mat x2) -9/Materials History --------- Turn | Location | Event 3 | -11/Scrapyard | Discovered new exit (range 14) 63 | -11/Scrapyard | Entered Materials 144 | -10/Materials | Discovered new exit (range 17) 309 | -10/Materials | Build established: Mutant 408 | -10/Materials | Discovered new exit (range 16) 435 | -10/Materials | Entered Mines 476 | -10/Mines | Discovered new exit (range 7) 517 | -10/Mines | Discovered new exit (range 10) 657 | -10/Mines | Assembled infested the area 749 | -10/Mines | Entered Materials 749 | -9/Materials | Evolved 2 slots: Propulsion x1, Weapon x1 1065 | -9/Materials | Core integrity fell below 50% 1076 | -9/Materials | Core integrity fell below 20% 1083 | -9/Materials | Destroyed by G-47 Trooper with Particle Gun Last Messages --------------- 01060_ Overheating: Broken Hvy. Assault Rifle damaged (-20). 01060_ Overheating: Lrg. Storage Unit damaged (-205). 01060_ Broken Hvy. Assault Rifle destroyed. 01061_ Overheating: Lgt. Assault Rifle damaged (-2). 01061_ Overheating: Med. Laser damaged (-12). 01062_ Overheating: Matter decay (-44). 01062_ K-01 Serf collects debris. 01062_ Lgt. Assault Rifle destroyed. 01064_ Med. Laser destroyed. 01065_ Overheating: Core damaged (-64). 01065_ K-01 Serf collects debris. 01067_ Ion Engine destroyed. 01069_ K-01 Serf collects debris. 01072_ Broken Com. Wheel destroyed. 01072_ Acquired Field Recycling Unit. 01075_ K-01 Serf collects debris. 01078_ Field Recycling Unit broken. 01078_ Overheating: Short circuit. 01078_ K-01 Serf collects debris. 01081_ K-01 Serf cleans the Electrolysis Chamber. Map ----- +----------------------------------------------------+ | | | | | | | | | | | | | | | | | ?????????????????????????????????????????????????? | | ?????????????????????????????????????????????????? | | ?????????????????????????????????????????????????? | | ?????????# ??????????????????????????????????????? | | ?????????# "?????????????????????????????????????? | | ?????????? ""????????????????????????????????????? | | ??????????? ?????????????#####?????????+#??????? | | ??????????###/#?????######## #???????## ##???? # | | ??????????# ????# # #???????+ ???? | | ????????### "" !##### # #???????# ???? | | ?????+ T + + #???????# [#??? ? | | ????????### ##### # #???????#!%####+### | | ??????????# ????# # #???????#!=#*[* | | ??????????### #?????# # #########%[#!""" "" | | ????????????# ??????######## # ##*%+=""" "" | | ??????####### ############## # T ## #%""" "" | | ????? *% = !!! # ##%%#== | | ????? % = *% !@ + ## ######## | | ???????" T! [ ! !!! # + #??????? | | ??????"" =% !! # ## #??????? | | ??????"" [ ######### #??????? | | ?????? k#???????# #??????? | | ?????? #???????+ #??????? | | ??????? ggg #???????# #??????? | | ???????+##### g g + ??????# #??????? | | ????????????# """ """%*""" a# "?????+ #??????? | | ????????????# """o """!k""" # ????## #??????? | | ????????????# """ """% """ #?##?????# #??????? | | ????????????# ?? ????????? #??????? | | ???????????????? ? ???????? #??????? | | ??????????????? ? ??????? ???????? | | ???????????????? ?? ???????? ???????? | | ????????????????####? ????????? ???????? | | ?????????????????????? ???????????????#???????? | | ?????????????????????????????????????????????????? | | ?????????????????????????????????????????????????? | | ?????????????????????????????????????????????????? | | ?????????????????????????????????????????????????? | | ?????????????????????????????????????????????????? | | ?????????????????????????????????????????????????? | | ?????????????????????????????????????????????????? | | ?????????????????????????????????????????????????? | +----------------------------------------------------+ Best States ------------- Heat Dissipation 38 Energy Generation 10 Energy Capacity 250 Matter Stores 450 Matter Capacity 450 Sight Range 16 Terrain Scan Density 10 Armor Coverage 150 Resistance: KI 20 Resistance: TH 20 Resistance: EX 20 Resistance: EM 20 Resistance: I 20 Resistance: S 20 Resistance: P 20 Evasion (%) 50 Recoil Reduction 2 Offensive Hacking 10 Item Schematics ----------------- None Robot Schematics ------------------ None Fabricated ------------ Nothing Alien Tech Used ----------------- None Achievements -------------- None Challenges ------------ None Game ------ Seed LargeSmartbombProtection Manual? 0 Play Time 00:20:00 Cumulative 331.5 hours Start 2023.12.20 @ 17:50:11 End 2024.01.28 @ 23:47:05 Sessions 11 Manual Loads 0 Difficulty Adventurer Special Mode None Game No. 106 Rogue 7 Adventurer 76 Explorer 23 Win Type - Total 10 Types 8/1/1/0/0/0/0/0/0 Lore% 68 Gallery% 76 Achievement% 67 Wizard Run 0 Options --------- ASCII 0 Keyboard 0 Movement Mouse Keybinds 0 Fullscreen 2 Font 36/TerminusFine Map View 76x50 Zoom Use 7% Tactical HUD 1 Map Filters NONE Filters NONE Steam 1 RUN: 10e223b7-8833-4978-86fa-2a876629168b